fUSD/lending_fUSD_20260610
["ID","MTS","AMOUNT","RATE_DAILY","PERIOD"]
[424697285,1781058639000,-445.0,0.00013024,2]
[424697273,1781058639000,-459.0,0.00013024,2]
[424697278,1781058639000,-457.0,0.00013024,2]
[424697287,1781058639000,-444.0,0.00013024,2]
[424697276,1781058639000,-445.0,0.00013024,2]
[424697289,1781058639000,-2000.0,0.00013024,2]
[424697291,1781058639000,-449.0,0.00013024,2]
[424697296,1781058639000,-447.0,0.00013024,2]
[424697307,1781058639000,-443.0,0.00013024,2]
[424697311,1781058639000,-442.0,0.00013024,2]
[424697294,1781058639000,-444.0,0.00013024,2]
[424697298,1781058639000,-446.0,0.00013024,2]
[424697330,1781058639000,-449.0,0.00013024,2]
[424697315,1781058639000,-443.0,0.00013024,2]
[424697317,1781058639000,-449.0,0.00013024,2]
[424697302,1781058639000,-457.0,0.00013024,2]
[424697319,1781058639000,-445.0,0.00013024,2]
[424697300,1781058639000,-446.0,0.00013024,2]
[424697309,1781058639000,-454.0,0.00013024,2]
[424697313,1781058639000,-458.0,0.00013024,2]
[424697304,1781058639000,-441.0,0.00013024,2]
[424697424,1781058640000,-150.0,0.00013607,2]
[424697423,1781058640000,-150.0,0.00013606,2]
[424697415,1781058640000,-3941.77830542,0.00013578,2]
[424697416,1781058640000,-237.15993826,0.00013578,2]
[424697420,1781058640000,-237.15993826,0.00013594,2]
[424697419,1781058640000,-150.0,0.0001359,2]
[424697421,1781058640000,-150.0,0.00013603,2]
[424697418,1781058640000,-150.0,0.00013583,2]
[424697414,1781058640000,-150.0,0.00013576,2]
[424697433,1781058640000,-150.0,0.00013654,2]
[424697425,1781058640000,-237.15993826,0.00013609,2]
[424697442,1781058640000,-150.0,0.00013685,2]
[424697432,1781058640000,-150.0,0.00013645,2]
[424697431,1781058640000,-237.15993826,0.00013639,2]
[424697429,1781058640000,-150.0,0.0001363,2]
[424697430,1781058640000,-166.66,0.00013636,2]
[424697428,1781058640000,-150.0,0.00013624,2]
[424697427,1781058640000,-237.15993826,0.00013624,2]
[424697434,1781058640000,-237.15993826,0.00013654,2]
[424697436,1781058640000,-150.0,0.00013664,2]
[424697438,1781058640000,-237.15993826,0.00013669,2]
[424697439,1781058640000,-7020.86738659,0.00013673,2]
[424697417,1781058640000,-400.52,0.0001358,2]
[424697426,1781058640000,-150.0,0.0001362,2]
[424697413,1781058640000,-150.0,0.00013567,2]
[424697383,1781058640000,-302.03939736,0.00013403,2]
[424697408,1781058640000,-150.0,0.00013535,2]
[424697381,1781058640000,-166.66,0.00013355,2]
[424697437,1781058640000,-736.0,0.00013667,2]
[424697387,1781058640000,-150.0,0.00013488,2]
[424697386,1781058640000,-235.93938,0.00013428,2]
[424697388,1781058640000,-150.0,0.00013488,2]
[424697391,1781058640000,-150.0,0.00013488,2]
[424697399,1781058640000,-1375.55287143,0.00013489,2]
[424697393,1781058640000,-237.15993826,0.00013488,2]
[424697394,1781058640000,-150.0,0.00013488,2]
[424697389,1781058640000,-150.0,0.00013488,2]
[424697390,1781058640000,-150.0,0.00013488,2]
[424697397,1781058640000,-150.0,0.00013488,2]
[424697401,1781058640000,-150.0,0.00013511,2]
[424697400,1781058640000,-237.15993826,0.00013503,2]
[424697403,1781058640000,-183.031762,0.00013521,2]
[424697402,1781058640000,-237.15993826,0.00013518,2]
[424697407,1781058640000,-237.15993826,0.00013533,2]
[424697406,1781058640000,-150.0,0.00013532,2]
[424697404,1781058640000,-150.0,0.00013522,2]
[424697405,1781058640000,-150.0,0.00013527,2]
[424697411,1781058640000,-150.0,0.00013559,2]
[424697410,1781058640000,-150.0,0.00013556,2]
[424697409,1781058640000,-237.15993826,0.00013548,2]
[424697412,1781058640000,-237.15993826,0.00013563,2]
[424697441,1781058640000,-237.15993826,0.00013684,2]
[424697435,1781058640000,-150.0,0.00013658,2]
[424697440,1781058640000,-150.0,0.00013678,2]
[424697472,1781058640000,-150.0,0.00013803,2]
[424697477,1781058640000,-150.0,0.00013834,2]
[424697471,1781058640000,-150.0,0.00013797,2]
[424697474,1781058640000,-150.0,0.00013821,2]
[424697473,1781058640000,-237.15993826,0.00013806,2]
[424697476,1781058640000,-150.0,0.00013828,2]
[424697475,1781058640000,-237.15993826,0.00013821,2]
[424697481,1781058640000,-150.0,0.00013844,2]
[424697479,1781058640000,-150.0,0.0001384,2]
[424697480,1781058640000,-150.0,0.00013843,2]
[424697482,1781058640000,-237.15993826,0.00013851,2]
[424697470,1781058640000,-150.0,0.00013796,2]
[424697483,1781058640000,-150.0,0.00013862,2]
[424697489,1781058640000,-331.91923479,0.00013883,2]
[424697488,1781058640000,-150.0,0.00013882,2]
[424697487,1781058640000,-237.15993826,0.00013881,2]
[424697485,1781058640000,-150.0,0.00013868,2]
[424697486,1781058640000,-3941.77830537,0.00013872,2]
[424697491,1781058640000,-150.0,0.00013892,2]
[424697490,1781058640000,-150.0,0.00013884,2]
[424697492,1781058640000,-237.15993826,0.00013896,2]
[424697495,1781058640000,-150.0,0.00013916,2]
[424697494,1781058640000,-237.15993826,0.00013912,2]
[424697443,1781058640000,-150.0,0.00013692,2]
[424697484,1781058640000,-237.15993826,0.00013866,2]
[424697469,1781058640000,-150.0,0.00013794,2]
[424697493,1781058640000,-150.0,0.00013896,2]
[424697478,1781058640000,-237.15993826,0.00013836,2]
[424697467,1781058640000,-2000.0,0.00013775,2]
[424697447,1781058640000,-237.15993826,0.000137,2]
[424697445,1781058640000,-500.0,0.00013698,2]
[424697449,1781058640000,-150.0,0.00013708,2]
[424697450,1781058640000,-237.15993826,0.00013715,2]
[424697446,1781058640000,-214.51569103,0.00013699,10]
[424697448,1781058640000,-150.0,0.00013702,2]
[424697455,1781058640000,-150.0,0.00013726,2]
[424697451,1781058640000,-150.0,0.00013718,2]
[424697454,1781058640000,-150.0,0.00013726,2]
[424697453,1781058640000,-3941.77830537,0.00013725,2]
[424697452,1781058640000,-150.0,0.00013724,2]
[424697444,1781058640000,-477.63805442,0.00013698,2]
[424697466,1781058640000,-237.15993826,0.00013775,2]
[424697456,1781058640000,-237.15993826,0.0001373,2]
[424697459,1781058640000,-150.0,0.00013752,2]
[424697460,1781058640000,-155.84,0.00013752,2]
[424697458,1781058640000,-150.0,0.00013749,2]
[424697464,1781058640000,-1375.55287143,0.00013771,2]
[424697463,1781058640000,-150.0,0.00013764,2]
[424697462,1781058640000,-150.0,0.0001376,2]
[424697461,1781058640000,-237.15993826,0.0001376,2]
[424697465,1781058640000,-150.0,0.00013773,2]
[424697468,1781058640000,-237.15993826,0.0001379,2]
[424697457,1781058640000,-237.15993826,0.00013745,2]
[424697536,1781058641000,-237.15993826,0.00014078,2]
[424697533,1781058641000,-237.15993826,0.00014063,2]
[424697528,1781058641000,-237.15993826,0.00014048,2]
[424697527,1781058641000,-1222.29,0.00014048,2]
[424697526,1781058641000,-150.0,0.0001404,2]
[424697525,1781058641000,-150.0,0.00014035,2]
[424697524,1781058641000,-150.0,0.00014033,2]
[424697523,1781058641000,-237.15993826,0.00014033,2]
[424697530,1781058641000,-150.0,0.00014055,2]
[424697531,1781058641000,-150.0,0.00014059,2]
[424697535,1781058641000,-150.0,0.00014067,2]
[424697542,1781058641000,-150.0,0.00014105,2]
[424697532,1781058641000,-150.0,0.00014061,2]
[424697537,1781058641000,-150.0,0.00014079,2]
[424697541,1781058641000,-150.0,0.00014101,2]
[424697538,1781058641000,-7020.86738659,0.00014082,2]
[424697540,1781058641000,-237.15993826,0.00014093,2]
[424697539,1781058641000,-150.0,0.00014082,2]
[424697544,1781058641000,-500.0,0.00014107,2]
[424697545,1781058641000,-2000.0,0.00014107,2]
[424697543,1781058641000,-150.0,0.00014106,2]
[424697554,1781058641000,-237.15993826,0.00014154,2]
[424697522,1781058641000,-3941.77830537,0.00014019,2]
[424697548,1781058641000,-237.15993826,0.00014123,2]
[424697534,1781058641000,-150.0,0.00014064,2]
[424697520,1781058641000,-150.0,0.00014017,2]
[424697509,1781058641000,-150.0,0.00013965,2]
[424697521,1781058641000,-237.15993826,0.00014017,2]
[424697550,1781058641000,-150.0,0.00014135,2]
[424697496,1781058641000,-166.66,0.00013917,2]
[424697498,1781058641000,-237.15993826,0.00013927,2]
[424697497,1781058641000,-150.0,0.00013921,2]
[424697500,1781058641000,-150.0,0.0001393,2]
[424697499,1781058641000,-150.0,0.00013928,2]
[424697502,1781058641000,-302.03939736,0.00013936,2]
[424697501,1781058641000,-166.66,0.00013934,2]
[424697503,1781058641000,-150.0,0.0001394,2]
[424697508,1781058641000,-150.0,0.00013963,2]
[424697507,1781058641000,-150.0,0.00013961,2]
[424697529,1781058641000,-1375.55287143,0.00014053,2]
[424697506,1781058641000,-237.15993826,0.00013957,2]
[424697505,1781058641000,-150.0,0.00013949,2]
[424697519,1781058641000,-150.0,0.00014011,2]
[424697515,1781058641000,-150.0,0.00013999,2]
[424697512,1781058641000,-150.0,0.00013987,2]
[424697510,1781058641000,-237.15993826,0.00013972,2]
[424697516,1781058641000,-250.0,0.00014,2]
[424697511,1781058641000,-150.0,0.00013973,2]
[424697518,1781058641000,-237.15993826,0.00014002,2]
[424697517,1781058641000,-150.0,0.00014,2]
[424697514,1781058641000,-237.15993826,0.00013987,2]
[424697513,1781058641000,-150.0,0.00013987,2]
[424697504,1781058641000,-237.15993826,0.00013942,2]
[424697547,1781058641000,-150.0,0.00014119,2]
[424697599,1781058641000,-237.15993826,0.00014351,2]
[424697551,1781058641000,-237.15993826,0.00014139,2]
[424697579,1781058641000,-150.0,0.00014271,2]
[424697581,1781058641000,-237.15993826,0.00014275,2]
[424697582,1781058641000,-150.0,0.00014276,2]
[424697583,1781058641000,-150.0,0.00014281,2]
[424697586,1781058641000,-150.0,0.00014296,2]
[424697585,1781058641000,-150.0,0.00014295,2]
[424697587,1781058641000,-237.15993826,0.00014305,2]
[424697584,1781058641000,-237.15993826,0.0001429,2]
[424697588,1781058641000,-150.0,0.00014305,2]
[424697589,1781058641000,-3941.77830537,0.00014312,2]
[424697590,1781058641000,-150.0,0.00014316,2]
[424697580,1781058641000,-150.0,0.00014273,2]
[424697592,1781058641000,-237.15993826,0.0001432,2]
[424697594,1781058641000,-302.03939736,0.00014327,2]
[424697591,1781058641000,-150.0,0.0001432,2]
[424697596,1781058641000,-1375.55287143,0.00014335,2]
[424697595,1781058641000,-237.15993826,0.00014335,2]
[424697597,1781058641000,-150.0,0.00014339,2]
[424697598,1781058641000,-150.0,0.00014344,2]
[424697600,1781058641000,-150.0,0.00014355,2]
[424697602,1781058641000,-150.0,0.00014368,2]
[424697601,1781058641000,-237.15993826,0.00014366,2]
[424697604,1781058641000,-150.0,0.00014373,2]
[424697552,1781058641000,-150.0,0.00014149,2]
[424697593,1781058641000,-150.0,0.00014325,2]
[424697573,1781058641000,-150.0,0.00014237,2]
[424697603,1781058641000,-150.0,0.00014369,2]
[424697574,1781058641000,-150.0,0.00014237,2]
[424697575,1781058641000,-150.0,0.00014237,2]
[424697549,1781058641000,-150.0,0.0001413,2]
[424697553,1781058641000,-150.0,0.00014154,2]
[424697556,1781058641000,-150.0,0.00014158,2]
[424697555,1781058641000,-302.03939736,0.00014157,2]
[424697560,1781058641000,-150.0,0.00014178,2]
[424697557,1781058641000,-3941.77830537,0.00014166,2]
[424697566,1781058641000,-237.15993826,0.00014199,2]
[424697559,1781058641000,-150.0,0.00014169,2]
[424697558,1781058641000,-237.15993826,0.00014169,2]
[424697565,1781058641000,-166.66,0.00014198,2]
[424697563,1781058641000,-150.0,0.00014193,2]
[424697546,1781058641000,-237.15993826,0.00014108,2]
[424697564,1781058641000,-150.0,0.00014198,2]
[424697562,1781058641000,-237.15993826,0.00014184,2]
[424697567,1781058641000,-150.0,0.00014201,2]
[424697578,1781058641000,-237.15993826,0.0001426,2]
[424697576,1781058641000,-237.15993826,0.00014245,2]
[424697568,1781058641000,-150.0,0.00014203,2]
[424697569,1781058641000,-237.15993826,0.00014214,2]
[424697571,1781058641000,-237.15993826,0.00014229,2]
[424697577,1781058641000,-150.0,0.00014249,2]
[424697570,1781058641000,-150.0,0.00014225,2]
[424697572,1781058641000,-150.0,0.00014237,2]
[424697561,1781058641000,-150.0,0.00014179,2]
[424697642,1781058642000,-237.15993826,0.00014517,2]
[424697641,1781058642000,-150.0,0.00014513,2]
[424697639,1781058642000,-150.0,0.00014509,2]
[424697640,1781058642000,-150.0,0.00014511,2]
[424697628,1781058642000,-302.03939736,0.00014469,2]
[424697636,1781058642000,-7020.86738659,0.00014491,2]
[424697637,1781058642000,-150.0,0.00014501,2]
[424697631,1781058642000,-150.0,0.00014475,2]
[424697629,1781058642000,-237.15993826,0.00014472,2]
[424697638,1781058642000,-237.15993826,0.00014502,2]
[424697644,1781058642000,-826.53707553,0.00014527,2]
[424697650,1781058642000,-500.0,0.00014536,2]
[424697646,1781058642000,-150.0,0.00014534,2]
[424697645,1781058642000,-237.15993826,0.00014532,2]
[424697647,1781058642000,-2000.0,0.00014536,2]
[424697649,1781058642000,-500.0,0.00014536,2]
[424697651,1781058642000,-500.0,0.00014536,2]
[424697648,1781058642000,-250.0,0.00014536,2]
[424697653,1781058642000,-500.0,0.00014536,2]
[424697654,1781058642000,-500.0,0.00014536,2]
[424697655,1781058642000,-500.0,0.00014536,2]
[424697652,1781058642000,-500.0,0.00014536,2]
[424697630,1781058642000,-150.0,0.00014474,2]
[424697657,1781058642000,-5122.7163604,0.00014537,2]
[424697643,1781058642000,-150.0,0.00014525,2]
[424697633,1781058642000,-150.0,0.00014487,2]
[424697620,1781058642000,-237.15993826,0.00014441,2]
[424697634,1781058642000,-150.0,0.00014487,2]
[424697659,1781058642000,-7406.3424857,0.00014537,2]
[424697605,1781058642000,-237.15993826,0.00014381,2]
[424697607,1781058642000,-166.66,0.00014394,2]
[424697606,1781058642000,-150.0,0.00014392,2]
[424697610,1781058642000,-150.0,0.00014407,2]
[424697608,1781058642000,-150.0,0.00014395,2]
[424697611,1781058642000,-150.0,0.0001441,2]
[424697609,1781058642000,-237.15993826,0.00014396,2]
[424697612,1781058642000,-237.15993826,0.00014411,2]
[424697615,1781058642000,-237.15993826,0.00014426,2]
[424697616,1781058642000,-150.0,0.00014434,2]
[424697627,1781058642000,-150.0,0.00014463,2]
[424697613,1781058642000,-150.0,0.00014413,2]
[424697617,1781058642000,-286.90030763,0.00014437,2]
[424697622,1781058642000,-1047.57904198,0.0001445,2]
[424697618,1781058642000,-150.0,0.00014439,2]
[424697623,1781058642000,-237.15993826,0.00014456,2]
[424697621,1781058642000,-150.0,0.00014441,2]
[424697619,1781058642000,-331.91923479,0.00014441,2]
[424697624,1781058642000,-150.0,0.00014457,2]
[424697625,1781058642000,-3941.77830537,0.00014459,2]
[424697635,1781058642000,-237.15993826,0.00014487,2]
[424697626,1781058642000,-500.0,0.0001446,2]
[424697632,1781058642000,-166.66,0.00014479,2]
[424697614,1781058642000,-150.0,0.00014415,2]
[424697662,1781058642000,-119861.285173,0.00014537,2]
[424697656,1781058642000,-419975.0292754,0.00014537,2]
[424697665,1781058642000,-237.15993826,0.00014547,2]
[424697690,1781058642000,-1370.695494,0.00014651,2]
[424697691,1781058642000,-5482.781974,0.00014651,2]
[424697692,1781058642000,-150.0,0.00014653,2]
[424697694,1781058642000,-237.15993826,0.00014668,2]
[424697693,1781058642000,-237.15993826,0.00014653,2]
[424697695,1781058642000,-286.90030761,0.00014669,2]
[424697696,1781058642000,-150.0,0.00014671,2]
[424697697,1781058642000,-150.0,0.00014677,2]
[424697698,1781058642000,-150.0,0.00014678,2]
[424697699,1781058642000,-150.0,0.0001468,2]
[424697701,1781058642000,-237.15993826,0.00014699,2]
[424697689,1781058642000,-150.0,0.00014646,2]
[424697711,1781058642000,-150.0,0.00014748,2]
[424697703,1781058642000,-302.03939736,0.00014709,2]
[424697705,1781058642000,-237.15993826,0.00014714,2]
[424697708,1781058642000,-150.0,0.00014725,2]
[424697704,1781058642000,-150.0,0.0001471,2]
[424697707,1781058642000,-150.0,0.00014722,2]
[424697706,1781058642000,-150.0,0.00014714,2]
[424697702,1781058642000,-150.0,0.00014701,2]
[424697709,1781058642000,-237.15993826,0.00014729,2]
[424697712,1781058642000,-150.0,0.00014748,2]
[424697714,1781058642000,-3941.77830537,0.00014753,2]
[424697658,1781058642000,-266179.5437052,0.00014537,2]
[424697710,1781058642000,-237.15993826,0.00014744,2]
[424697687,1781058642000,-237.15993826,0.00014638,2]
[424697700,1781058642000,-237.15993826,0.00014684,2]
[424697685,1781058642000,-150.0,0.00014631,2]
[424697666,1781058642000,-150.0,0.00014552,2]
[424697688,1781058642000,-150.0,0.0001464,2]
[424697664,1781058642000,-150.0,0.00014546,2]
[424697713,1781058642000,-150.0,0.0001475,2]
[424697661,1781058642000,-7961.8065955,0.00014537,2]
[424697663,1781058642000,-150.0,0.00014544,2]
[424697660,1781058642000,-376728.43857,0.00014537,2]
[424697667,1781058642000,-150.0,0.00014558,2]
[424697668,1781058642000,-237.15993826,0.00014562,2]
[424697675,1781058642000,-237.15993826,0.00014593,2]
[424697673,1781058642000,-150.0,0.0001459,2]
[424697677,1781058642000,-150.0,0.00014606,2]
[424697676,1781058642000,-302.03939736,0.00014595,2]
[424697674,1781058642000,-150.0,0.00014592,2]
[424697686,1781058642000,-150.0,0.00014634,2]
[424697684,1781058642000,-150.0,0.00014629,2]
[424697669,1781058642000,-1500.0,0.00014568,2]
[424697683,1781058642000,-237.15993826,0.00014623,2]
[424697681,1781058642000,-155.84,0.00014612,2]
[424697680,1781058642000,-150.0,0.00014612,2]
[424697682,1781058642000,-1375.55287143,0.00014618,2]
[424697678,1781058642000,-3941.77830537,0.00014606,2]
[424697670,1781058642000,-237.15993826,0.00014578,2]
[424697672,1781058642000,-150.0,0.00014582,2]
[424697671,1781058642000,-150.0,0.00014578,2]
[424697679,1781058642000,-237.15993826,0.00014608,2]
[424697756,1781058643000,-25000.0,0.00014891,3]
[424697753,1781058643000,-10000.0,0.00014884,2]
[424697755,1781058643000,-150.0,0.00014891,2]
[424697752,1781058643000,-25000.0,0.00014882,3]
[424697754,1781058643000,-150.0,0.00014884,2]
[424697742,1781058643000,-166.66,0.00014854,2]
[424697750,1781058643000,-25000.0,0.00014874,3]
[424697749,1781058643000,-150.0,0.00014871,2]
[424697745,1781058643000,-25000.0,0.00014865,3]
[424697757,1781058643000,-237.15993826,0.00014895,2]
[424697751,1781058643000,-237.15993826,0.0001488,2]
[424697759,1781058643000,-465.50266458,0.000149,2]
[424697770,1781058643000,-4085.64972452,0.000149,2]
[424697760,1781058643000,-10807.36198924,0.000149,2]
[424697762,1781058643000,-25000.0,0.000149,3]
[424697765,1781058643000,-12945.1,0.000149,2]
[424697761,1781058643000,-286.90030761,0.000149,2]
[424697764,1781058643000,-12945.1,0.000149,2]
[424697763,1781058643000,-3941.77830537,0.000149,2]
[424697768,1781058643000,-12945.14,0.000149,2]
[424697767,1781058643000,-12945.1,0.000149,2]
[424697769,1781058643000,-5319.07618149,0.000149,2]
[424697766,1781058643000,-12945.1,0.000149,2]
[424697746,1781058643000,-237.15993826,0.00014865,2]
[424697758,1781058643000,-150.0,0.00014898,2]
[424697744,1781058643000,-25000.0,0.00014856,3]
[424697716,1781058643000,-237.15993826,0.00014759,2]
[424697743,1781058643000,-150.0,0.00014854,2]
[424697778,1781058643000,-150.0,0.00014915,2]
[424697720,1781058643000,-150.0,0.00014772,2]
[424697715,1781058643000,-150.0,0.00014756,2]
[424697718,1781058643000,-150.0,0.00014766,2]
[424697722,1781058643000,-237.15993826,0.00014774,2]
[424697725,1781058643000,-237.15993826,0.0001479,2]
[424697724,1781058643000,-150.0,0.00014789,2]
[424697723,1781058643000,-150.0,0.00014782,2]
[424697727,1781058643000,-350.0,0.000148,2]
[424697726,1781058643000,-150.0,0.00014796,2]
[424697728,1781058643000,-2368.50890741,0.000148,2]
[424697730,1781058643000,-150.0,0.0001481,2]
[424697729,1781058643000,-237.15993826,0.00014805,2]
[424697733,1781058643000,-150.0,0.0001482,2]
[424697732,1781058643000,-150.0,0.00014816,2]
[424697734,1781058643000,-237.15993826,0.0001482,2]
[424697736,1781058643000,-237.15993826,0.00014835,2]
[424697735,1781058643000,-150.0,0.00014829,2]
[424697731,1781058643000,-302.03939733,0.00014814,2]
[424697737,1781058643000,-385.91311246,0.00014839,2]
[424697739,1781058643000,-25000.0,0.00014847,3]
[424697747,1781058643000,-150.0,0.00014867,2]
[424697738,1781058643000,-150.0,0.00014844,2]
[424697748,1781058643000,-150.0,0.00014868,2]
[424697741,1781058643000,-150.0,0.0001485,2]
[424697740,1781058643000,-237.15993826,0.0001485,2]
[424697771,1781058643000,-753.1048271,0.000149,2]
[424697717,1781058643000,-166.66,0.0001476,2]
[424697772,1781058643000,-1375.55287143,0.000149,2]
[424697804,1781058643000,-826.53707553,0.0001499,2]
[424697815,1781058643000,-500.0,0.00014999,2]
[424697809,1781058643000,-500.0,0.00014999,2]
[424697807,1781058643000,-2704.7365885,0.00014999,2]
[424697813,1781058643000,-500.0,0.00014999,2]
[424697805,1781058643000,-826.53707553,0.0001499,2]
[424697812,1781058643000,-500.0,0.00014999,2]
[424697806,1781058643000,-151.0,0.00014997,2]
[424697808,1781058643000,-500.0,0.00014999,2]
[424697810,1781058643000,-500.0,0.00014999,2]
[424697814,1781058643000,-500.0,0.00014999,2]
[424697811,1781058643000,-500.0,0.00014999,2]
[424697816,1781058643000,-500.0,0.00014999,2]
[424697818,1781058643000,-500.0,0.00014999,2]
[424697817,1781058643000,-500.0,0.00014999,2]
[424697820,1781058643000,-500.0,0.00014999,2]
[424697819,1781058643000,-500.0,0.00014999,2]
[424697823,1781058643000,-500.0,0.00014999,2]
[424697822,1781058643000,-500.0,0.00014999,2]
[424697824,1781058643000,-500.0,0.00014999,2]
[424697826,1781058643000,-500.0,0.00014999,2]
[424697825,1781058643000,-500.0,0.00014999,2]
[424697828,1781058643000,-500.0,0.00014999,2]
[424697827,1781058643000,-500.0,0.00014999,2]
[424697777,1781058643000,-237.15993826,0.00014911,2]
[424697802,1781058643000,-2000.0,0.0001499,2]
[424697794,1781058643000,-155.55734656,0.00014986,2]
[424697821,1781058643000,-500.0,0.00014999,2]
[424697803,1781058643000,-250.0,0.0001499,2]
[424697780,1781058643000,-237.15993826,0.00014926,2]
[424697801,1781058643000,-155.92261727,0.0001499,10]
[424697779,1781058643000,-150.0,0.00014918,2]
[424697773,1781058643000,-7020.86738659,0.000149,2]
[424697781,1781058643000,-2721.05924907,0.00014937,2]
[424697776,1781058643000,-155.92261727,0.00014908,10]
[424697774,1781058643000,-150.0,0.00014907,2]
[424697792,1781058643000,-184.89089988,0.00014986,2]
[424697789,1781058643000,-237.15993826,0.00014971,2]
[424697790,1781058643000,-182.5276494,0.00014986,2]
[424697791,1781058643000,-281.57671453,0.00014986,2]
[424697782,1781058643000,-150.0,0.00014939,2]
[424697775,1781058643000,-291.61486188,0.00014908,2]
[424697784,1781058643000,-150.0,0.00014942,2]
[424697783,1781058643000,-237.15993826,0.00014941,2]
[424697800,1781058643000,-117918.73704676,0.00014989,2]
[424697796,1781058643000,-207.25111029,0.00014986,2]
[424697797,1781058643000,-237.15993826,0.00014986,2]
[424697795,1781058643000,-256.2242573,0.00014986,2]
[424697798,1781058643000,-190.96821533,0.00014986,2]
[424697786,1781058643000,-150.0,0.00014952,2]
[424697788,1781058643000,-150.0,0.00014963,2]
[424697785,1781058643000,-150.0,0.00014947,2]
[424697787,1781058643000,-237.15993826,0.00014956,2]
[424697793,1781058643000,-8831.0,0.00014986,2]
[424697799,1781058643000,-500.0,0.00014988,2]
[424697853,1781058644000,-500.0,0.00014999,2]
[424697858,1781058644000,-500.0,0.00014999,2]
[424697850,1781058644000,-500.0,0.00014999,2]
[424697849,1781058644000,-500.0,0.00014999,2]
[424697856,1781058644000,-500.0,0.00014999,2]
[424697859,1781058644000,-500.0,0.00014999,2]
[424697851,1781058644000,-500.0,0.00014999,2]
[424697864,1781058644000,-500.0,0.00014999,2]
[424697860,1781058644000,-500.0,0.00014999,2]
[424697862,1781058644000,-500.0,0.00014999,2]
[424697863,1781058644000,-500.0,0.00014999,2]
[424697861,1781058644000,-500.0,0.00014999,2]
[424697865,1781058644000,-500.0,0.00014999,2]
[424697866,1781058644000,-500.0,0.00014999,2]
[424697852,1781058644000,-500.0,0.00014999,2]
[424697868,1781058644000,-500.0,0.00014999,2]
[424697855,1781058644000,-500.0,0.00014999,2]
[424697857,1781058644000,-500.0,0.00014999,2]
[424697833,1781058644000,-500.0,0.00014999,2]
[424697847,1781058644000,-500.0,0.00014999,2]
[424697867,1781058644000,-500.0,0.00014999,2]
[424697829,1781058644000,-500.0,0.00014999,2]
[424697830,1781058644000,-500.0,0.00014999,2]
[424697837,1781058644000,-500.0,0.00014999,2]
[424697834,1781058644000,-500.0,0.00014999,2]
[424697835,1781058644000,-500.0,0.00014999,2]
[424697832,1781058644000,-500.0,0.00014999,2]
[424697831,1781058644000,-500.0,0.00014999,2]
[424697843,1781058644000,-500.0,0.00014999,2]
[424697836,1781058644000,-500.0,0.00014999,2]
[424697840,1781058644000,-500.0,0.00014999,2]
[424697839,1781058644000,-500.0,0.00014999,2]
[424697842,1781058644000,-500.0,0.00014999,2]
[424697841,1781058644000,-500.0,0.00014999,2]
[424697848,1781058644000,-500.0,0.00014999,2]
[424697844,1781058644000,-500.0,0.00014999,2]
[424697845,1781058644000,-500.0,0.00014999,2]
[424697846,1781058644000,-500.0,0.00014999,2]
[424697838,1781058644000,-500.0,0.00014999,2]
[424697869,1781058644000,-500.0,0.00014999,2]
[424697854,1781058644000,-500.0,0.00014999,2]